Cogmind - Beta 14 @@@ ROGUE MODE // 2025.03.29 @ 20:56:17 Player: mix Result: Destroyed by S-10 Pest with Light Assault Rifle Performance ------------- Evolutions (1) 500 Regions Visited (6) 1200 Robots Destroyed (0) 0 Value Destroyed (0) 0 Prototype IDs (23) 460 Alien Tech Used (0) 0 Bonus (500) 500 TOTAL SCORE: 2660 Bonus ------- Pacifist 200 Aligned with FarCom 300 Cogmind --------- Core Integrity 0/400 Matter 300/300 Energy 100/100 System Corruption 1% Temperature Cool (0) Movement Core (50) Location -8/Mines Parts ------- > --- POWER (1) -------- (None) > --- PROPULSION (4) --- (None) > --- UTILITY (2) ------ Improved Terrain Scan Processor > --- WEAPON (2) ------- (None) > --- INVENTORY (5) ---- Light Ion Engine Improved Treads Skeleton Box Rocket Launcher Plasma Cutter Peak State ------------ > --- POWER ------------ (None) > --- PROPULSION ------- Improved Treads Improved Treads Improved Treads Flight Unit > --- UTILITY ---------- Signal Interpreter ECM Suite > --- WEAPON ----------- (None) > --- INVENTORY -------- Light Ion Engine Rocket Launcher Plasma Cutter [Rating: 9] Favorites ----------- Power Light Ion Engine Engine Light Ion Engine Propulsion Flight Unit Treads Light Treads Flight Unit Flight Unit Utility ECM Suite Device ECM Suite Processor Signal Interpreter Weapon None Build | -11 -10 -10 -9 -9 -9 -8 ------- Run | Yrd Mat Min Mat Min Exi Min Slots Evolved 2 | . . . 2 . . . Power . | . . . . . . . Propulsion 2 | . . . 2 . . . Utility . | . . . . . . . Weapon . | . . . . . . . Parts Attached 15 | 3 . 1 3 7 . 1 Power 2 | 1 . . . 1 . . Engine 2 | 1 . . . 1 . . Core . | . . . . . . . Reactor . | . . . . . . . Propulsion 10 | 2 . . 2 6 . . Treads 7 | 2 . . 2 3 . . Leg . | . . . . . . . Wheel . | . . . . . . . Hover . | . . . . . . . Flight 3 | . . . . 3 . . Utility 3 | . . 1 1 . . 1 Device 1 | . . . 1 . . . Storage . | . . . . . . . Processor 2 | . . 1 . . . 1 Hackware . | . . . . . . . Protection . | . . . . . . . Artifact . | . . . . . . . Weapon . | . . . . . . . Energy Gun . | . . . . . . . Energy Cannon . | . . . . . . . Ballistic Gun . | . . . . . . . Ballistic Cannon . | . . . . . . . Launcher . | . . . . . . . Special Weapon . | . . . . . . . Impact Weapon . | . . . . . . . Slashing Weapon . | . . . . . . . Piercing Weapon . | . . . . . . . Special Melee Weapon . | . . . . . . . Unidentified Prototypes . | . . . . . . . Parts Lost 6 | . . . . 4 . 2 Power . | . . . . . . . Propulsion 5 | . . . . 4 . 1 Utility 1 | . . . . . . 1 Weapon . | . . . . . . . Highest Loss Streak 2 | . . . . 2 . 2 To Critical Strikes . | . . . . . . . Average Slot Usage (%) 36 | . 28 29 48 45 33 31 Treads 10 | . 28 28 26 15 . . Flight 6 | . . . . 7 11 9 Device 8 | . . . 11 11 11 10 Processor 9 | . . 1 11 11 11 11 Peak Build Rating 9 | 3 2 3 8 9 4 6 Average Rating 4 | 1 2 2 4 5 3 4 On Entrance 3 | . 2 2 3 8 3 4 Naked Turns . | . . . . . . . Heaviest Build 5 | . . . 2 5 2 2 Greatest Support 8 | 3 3 3 3 8 4 4 Greatest Overweight (x) . | . . . . . . . Average Overweight (x) . | . . . . . . . Largest Inventory Capacity 5 | 5 5 5 5 5 5 5 Average Capacity 5 | 5 5 5 5 5 5 5 Most Carried 5 | 3 1 3 5 5 5 5 Average Carried 3 | 1 1 1 2 4 4 5 Final Capacity 5 | 5 5 5 5 5 5 5 Final Carried 5 | 1 1 2 4 5 5 5 Class Distribution -------------------- 100% | Mutant Dominant Class ---------------- Mutant | -10/Materials Mutant | -10/Mines Mutant | -9/Materials Mutant | -9/Mines Mutant | -9/Exiles Mutant | -8/Mines Resources | -11 -10 -10 -9 -9 -9 -8 ----------- Run | Yrd Mat Min Mat Min Exi Min Matter Collected 328 | 178 . 62 . 79 . 9 Remotely . | . . . . . . . Salvage Created . | . . . . . . . Parts . | . . . . . . . Haulers Intercepted . | . . . . . . . Recyclers Shooed 1 | . . . . 1 . . Parts Field Recycled . | . . . . . . . Retrieved Matter . | . . . . . . . Parts Self-Destructed . | . . . . . . . Prevented . | . . . . . . . Kills | -11 -10 -10 -9 -9 -9 -8 ------- Run | Yrd Mat Min Mat Min Exi Min Combat Hostiles Destroyed . | . . . . . . . Classes Destroyed . | . . . . . . . Best Kill Streak . | . . . . . . . Combat Bots Only . | . . . . . . . Max Kills in Single Turn . | . . . . . . . Gunslinging . | . . . . . . . Exploded . | . . . . . . . Melee . | . . . . . . . Uniques/NPCs Destroyed . | . . . . . . . Combat | -11 -10 -10 -9 -9 -9 -8 -------- Run | Yrd Mat Min Mat Min Exi Min Hostile Shots Fired 132 | . . 16 29 30 . 57 Missed 58 | . . 7 15 17 . 19 Damage Taken 896 | . . 121 182 274 . 319 Core 433 | . . 29 16 102 . 286 Absorbed by Shields . | . . . . . . . Core Remaining (%) 94 | 100 . 88 . . . . Volleys Fired . | . . . . . . . Largest . | . . . . . . . Hottest . | . . . . . . . Shots Fired . | . . . . . . . Gun . | . . . . . . . Cannon . | . . . . . . . Launcher . | . . . . . . . Special . | . . . . . . . Kinetic . | . . . . . . . Thermal . | . . . . . . . Explosive . | . . . . . . . Electromagnetic . | . . . . . . . Robot Hit Streak . | . . . . . . . Robot Miss Streak . | . . . . . . . Penetration Max . | . . . . . . . Secondary Targets . | . . . . . . . Shots Hit Robots . | . . . . . . . Core Hits . | . . . . . . . Critical Kills . | . . . . . . . Critical Parts Destroyed . | . . . . . . . Critical Strikes . | . . . . . . . Melee Attacks . | . . . . . . . Impact . | . . . . . . . Slashing . | . . . . . . . Piercing . | . . . . . . . Sneak Attacks . | . . . . . . . Combat Hostiles . | . . . . . . . Follow-up Attacks . | . . . . . . . Damage Inflicted 20 | . . . . 8 . 12 Guns . | . . . . . . . Cannons . | . . . . . . . Explosions . | . . . . . . . Melee . | . . . . . . . Ramming 20 | . . . . 8 . 12 Kinetic . | . . . . . . . Thermal . | . . . . . . . Explosive . | . . . . . . . Electromagnetic . | . . . . . . . Impact . | . . . . . . . Slashing . | . . . . . . . Piercing . | . . . . . . . Highest Corruption 1 | . . . 1 1 1 1 Average Corruption 1 | . . . 1 1 1 1 Corruption Purged . | . . . . . . . Corruption Blocked . | . . . . . . . Effects 6 | . . . 1 1 . 4 Message Errors 1 | . . . 1 . . . Matter Fused 1 | . . . . . . 1 Heat Flow Errors 1 | . . . . . . 1 Energy Discharges 2 | . . . . 1 . 1 Data Loss (minor) 1 | . . . . . . 1 Overload Shots . | . . . . . . . Overflow Damage . | . . . . . . . Projectiles . | . . . . . . . Explosions . | . . . . . . . Melee . | . . . . . . . Knockbacks . | . . . . . . . Impact . | . . . . . . . Kinetic . | . . . . . . . Secondary . | . . . . . . . Self-Inflicted Damage 9 | . . . . 3 . 6 Shots . | . . . . . . . Rammed 3 | . . . . 2 . 1 Targets Rammed 3 | . . . . 2 . 1 Kicked . | . . . . . . . Crushed . | . . . . . . . Highest Temperature 264 | . . . . . . 264 Average Temperature 141 | . . . . . . 141 Received Heat Transfer 119 | . . 66 33 20 . . Siege Activations . | . . . . . . . Robots Corrupted . | . . . . . . . Combat Hostiles . | . . . . . . . Parts Fried . | . . . . . . . Impact Corruptions . | . . . . . . . Robots Melted . | . . . . . . . Combat Hostiles . | . . . . . . . Parts Melted . | . . . . . . . Heat Transferred . | . . . . . . . Parts Sabotaged . | . . . . . . . Parts Stolen . | . . . . . . . Parts Stripped . | . . . . . . . Power Chain Reactions . | . . . . . . . Alert | -11 -10 -10 -9 -9 -9 -8 ------- Run | Yrd Mat Min Mat Min Exi Min Peak Influence 117 | . 30 71 117 70 . 45 Initial 45 | . . 11 27 45 . . Average 22 | . 23 39 66 32 . 3 Maximum Alert Level . | . . . . . . . Low Security (%) 100 | 100 100 100 100 100 . 100 Level 1 . | . . . . . . . Level 2 . | . . . . . . . Level 3 . | . . . . . . . Level 4 . | . . . . . . . Level 5 . | . . . . . . . High Security . | . . . . . . . Max Security . | . . . . . . . Squads Dispatched 2 | . 1 . 1 . . . Investigation . | . . . . . . . Extermination . | . . . . . . . Reinforcement 2 | . 1 . 1 . . . Assault . | . . . . . . . Garrison . | . . . . . . . Intercept . | . . . . . . . Searches Triggered . | . . . . . . . Construction Impeded . | . . . . . . . Haulers Reinforced . | . . . . . . . Active Scanning Responses . | . . . . . . . Cargo Convoy Interrupts . | . . . . . . . Stealth | -11 -10 -10 -9 -9 -9 -8 --------- Run | Yrd Mat Min Mat Min Exi Min Distress Signals 1 | . . . 1 . . . Communications Jammed . | . . . . . . . Distress Signals . | . . . . . . . Times Spotted 52 | . 3 4 12 23 . 10 Peak Tracking Total 12 | . 2 2 12 7 . 7 Tactical Retreats 11 | . . 2 2 6 . 1 Traps | -11 -10 -10 -9 -9 -9 -8 ------- Run | Yrd Mat Min Mat Min Exi Min Traps Triggered 1 | . . . 1 . . . Indirectly . | . . . . . . . Trap Hack Attempts . | . . . . . . . Triggered . | . . . . . . . Disarmed . | . . . . . . . Reprogrammed . | . . . . . . . Reused . | . . . . . . . Traps Extracted . | . . . . . . . Installed . | . . . . . . . Triggered . | . . . . . . . Machines | -11 -10 -10 -9 -9 -9 -8 ---------- Run | Yrd Mat Min Mat Min Exi Min Machines Disabled . | . . . . . . . Max in Single Turn . | . . . . . . . Machines Repaired . | . . . . . . . Machines Dismantled . | . . . . . . . Machines Sabotaged . | . . . . . . . Overloaded Fab Kills . | . . . . . . . Hacking | -11 -10 -10 -9 -9 -9 -8 --------- Run | Yrd Mat Min Mat Min Exi Min Machines Accessed 2 | . 1 . . . 1 . Terminals 1 | . 1 . . . . . Fabricators . | . . . . . . . Repair Stations . | . . . . . . . Recycling Units . | . . . . . . . Scanalyzers . | . . . . . . . Garrison Access . | . . . . . . . Total Hacks 5 | . 4 . . . 1 . Successful 3 | . 2 . . . 1 . Failed 2 | . 2 . . . . . Catastrophic 2 | . 2 . . . . . Database Lockouts . | . . . . . . . Manual 5 | . 4 . . . 1 . Terminals 4 | . 4 . . . . . Fabricators . | . . . . . . . Repair Stations . | . . . . . . . Recycling Units . | . . . . . . . Scanalyzers . | . . . . . . . Garrison Access . | . . . . . . . Terminal Hacks 1 | . . . . . 1 . Derelict Proto ID Bank 1 | . . . . . 1 . Fabricator Hacks . | . . . . . . . Repair Station Hacks . | . . . . . . . Recycling Unit Hacks . | . . . . . . . Scanalyzer . | . . . . . . . Garrison Access Hacks . | . . . . . . . Unauthorized Hacks 2 | . 2 . . . . . Terminals 2 | . 2 . . . . . Assimilate 1 | . 1 . . . . . Botnet 1 | . 1 . . . . . Fabricators . | . . . . . . . Repair Stations . | . . . . . . . Recycling Units . | . . . . . . . Scanalyzers . | . . . . . . . Garrison Access . | . . . . . . . Data Cores Recovered . | . . . . . . . Used . | . . . . . . . Hacking Detections 1 | . 1 . . . . . Full Trace Events . | . . . . . . . Feedback Events . | . . . . . . . Feedback Blocked . | . . . . . . . Robot Schematics Acquired . | . . . . . . . Robots Built . | . . . . . . . Authchips . | . . . . . . . Time . | . . . . . . . Total Robot Build Rating . | . . . . . . . Part Schematics Acquired . | . . . . . . . Parts Built . | . . . . . . . Authchips . | . . . . . . . Time . | . . . . . . . Total Part Build Rating . | . . . . . . . Parts Repaired . | . . . . . . . Time . | . . . . . . . Parts Recycled . | . . . . . . . Recycled Matter . | . . . . . . . Retrieved Matter . | . . . . . . . Retrieved Components . | . . . . . . . Parts Scanalyzed . | . . . . . . . Part Schematics Acquired . | . . . . . . . Parts Damaged . | . . . . . . . Bothacking | -11 -10 -10 -9 -9 -9 -8 ------------ Run | Yrd Mat Min Mat Min Exi Min Used RIF Installer . | . . . . . . . Robots Hacked . | . . . . . . . Non-combat . | . . . . . . . Combat . | . . . . . . . Robot Hacks Applied . | . . . . . . . Relay Couplers Released . | . . . . . . . Fabnet Peak Effective % . | . . . . . . . Robots Rewired . | . . . . . . . Allies Hacked . | . . . . . . . Hacks Repelled . | . . . . . . . Allies | -11 -10 -10 -9 -9 -9 -8 -------- Run | Yrd Mat Min Mat Min Exi Min Total Allies 3 | . 1 . . 2 . . Largest Group 2 | . 1 1 . 2 . . Highest-Rated Group 45 | . 10 10 . 45 . . Highest-Rated Ally 31 | . 10 10 . 31 . . Total Orders . | . . . . . . . Ally Attacks 7 | . . . . 7 . . Total Damage 125 | . . . . 125 . . Kills 2 | . . . . 2 . . Allies Corrupted . | . . . . . . . Allies Melted . | . . . . . . . Intel | -11 -10 -10 -9 -9 -9 -8 ------- Run | Yrd Mat Min Mat Min Exi Min Robot Analysis Total . | . . . . . . . Derelict Logs Recovered 1 | . . . . 1 . . Drone Launches . | . . . . . . . Drone Recoveries . | . . . . . . . Exploration | -11 -10 -10 -9 -9 -9 -8 ------------- Run | Yrd Mat Min Mat Min Exi Min Turns Passed 1395 | 25 71 166 96 371 130 536 Spaces Moved 1862 | 37 126 308 129 495 322 445 Core 908 | 37 126 308 129 260 . 48 Treads . | . . . . . . . Legs . | . . . . . . . Wheels . | . . . . . . . Hover . | . . . . . . . Flight 954 | . . . . 235 322 397 Fastest Speed 37 | 50 50 50 50 37 40 40 Average Speed 44 | 50 50 50 50 44 40 41 Slowest Speed 60 | 50 50 50 50 60 40 50 Overloaded Moves . | . . . . . . . Propulsion Burnouts . | . . . . . . . Robots Hopped 5 | . . . . 1 . 4 Cave-ins Triggered . | . . . . . . . Exploration Rate (%) 46 | 3 24 57 24 78 61 80 Regions Visited 6 Branch Regions 4 Pre-discovered Areas . | . . . . . . . Known Exits Taken 4 | . . 1 1 1 1 . Unknown Exits Taken 2 | 1 1 . . . . . Scrap Searched 4 | . . 2 . 1 . 1 Spaces Dug . | . . . . . . . Terrain Destroyed . | . . . . . . . Melee . | . . . . . . . Projectile . | . . . . . . . AOE . | . . . . . . . Terrain Rammed . | . . . . . . . Walls Destroyed . | . . . . . . . Machines Disabled . | . . . . . . . Actions | -11 -10 -10 -9 -9 -9 -8 --------- Run | Yrd Mat Min Mat Min Exi Min Total 2415 | 43 133 319 159 644 323 794 Wait 524 | . 8 9 23 134 . 350 Move 1846 | 36 125 307 128 492 321 437 Hop 5 | . . . . 1 . 4 Pick Up 13 | 3 . 2 5 2 1 . Fast Attach 2 | . . . . 1 . 1 Attach 13 | 3 . 1 3 6 . . Detach 6 | 1 . . . 5 . . Swap . | . . . . . . . Drop 3 | . . . . 1 1 1 Fire . | . . . . . . . Melee . | . . . . . . . Ram 3 | . . . . 2 . 1 Kick . | . . . . . . . Crush . | . . . . . . . Escape Stasis . | . . . . . . . Rewire . | . . . . . . . Trap . | . . . . . . . Miscellaneous . | . . . . . . . Route ------- -11/Scrapyard -10/Materials -10/Mines -9/Materials -9/Mines (discovered 3 exits: *Mat x2 / *Exi) -9/Exiles (discovered 2 exits: *Min x2) -8/Mines History --------- Turn | Location | Event 3 | -11/Scrapyard | Discovered new exit (range 15) 26 | -11/Scrapyard | Entered Materials 89 | -10/Materials | Discovered new exit (range 5) 97 | -10/Materials | Entered Mines 97 | -10/Mines | Accompanied by 1 ally 215 | -10/Mines | Received a Rocket Launcher from a helpful Derelict 242 | -10/Mines | Discovered new exit (range 6) 262 | -10/Mines | Identified exit to Materials 263 | -10/Mines | Entered Materials 263 | -9/Materials | Evolved 2 slots: Propulsion x2 308 | -9/Materials | Build established: Mutant 351 | -9/Materials | Discovered new exit (range 16) 358 | -9/Materials | Identified exit to Mines 359 | -9/Materials | Entered Mines 396 | -9/Mines | Assembled infested the area 401 | -9/Mines | Assisted by a Guerilla fighting off Assembled 409 | -9/Mines | Discovered new exit (range 4) 436 | -9/Mines | Met a Derelict bent on vengeance 461 | -9/Mines | Learned Materials terminal intel 468 | -9/Mines | Discovered new exit (range 9) 504 | -9/Mines | Identified exit to Materials 729 | -9/Mines | Deemed a non-threat by the Exiles lab entrance 729 | -9/Mines | Discovered new exit (range 5) 730 | -9/Mines | Identified exit to Exiles 730 | -9/Mines | Entered Exiles 740 | -9/Exiles | Met 8R-AWN 747 | -9/Exiles | Met EX-HEX 759 | -9/Exiles | Met EX-BIN 763 | -9/Exiles | Aligned with FarCom system 764 | -9/Exiles | Given EX-Vault access code 773 | -9/Exiles | Opened EX-Vault 776 | -9/Exiles | Found Skeleton Box 784 | -9/Exiles | Warned to stay clear of 0b10 Research branches 795 | -9/Exiles | Met EX-DEC 809 | -9/Exiles | Discovered new exit (range 12) 813 | -9/Exiles | Identified exit to Mines 856 | -9/Exiles | Discovered exit to Mines (range 14) 860 | -9/Exiles | Left Exiles lab with Skeleton Box 860 | -9/Exiles | Entered Mines 1370 | -8/Mines | Core integrity fell below 50% 1381 | -8/Mines | Core integrity fell below 20% 1396 | -8/Mines | Destroyed by S-10 Pest with Light Assault Rifle Last Messages --------------- T-07 Excavator is excavating. Searching scrap... Found Field Recycling Unit. Found Ion Cannon. Found Autogun. Found 43 Matter. System corrupted: Component data lost. System corrupted: Energy discharge (-21). Discarded Signal Interpreter. Acquired Imp. Terrain Scan Processor. Flight Unit destroyed. T-07 Excavator is excavating. ECM Suite destroyed. Acquired 9 matter. S-10 Pest destroyed. K-01 Serf collects debris. Slammed into U-05 Engineer. Destabilizing: System interference. Imp. Terrain Scan Processor temporarily disabled. Map ----- +----------------------------------------------------+ | ???????????????????????## #?????# | | ?????????????????????????## ##????# | | ???????????????????????????## ##???# | | #????????????????????????????## #???## | | #????????????????????????????## #????# | | #???????????????????????????## ##???## | | ##??????????????????????????# ##???## | | #?????????????????????????## ##??## | | #????##??????????????????## #### | | #???# ##????????????????## ## | | #??? #????????????????# = | | ##??# #????????????????# =%##### | | #### #????????????????## ##???## | | ## #??????????????????##!#?????# | | ### #?????#??????????????#%#?????# | | ??## ##????? ??????????????#[#?????# ## | | ??## #?????? ????????????#]#?????# #### | | ??# ##????gg"""???????????#s#?????# #??? | | ??# ####?? ""????????????# #?????# ##??? | | ?## C #??l""????????????# #?????# ##???? | | ## ## #?? ????????????# #?????# #????? | | # ##??#??# #????????????#s#?????# #????? | | # #????### #????????????# #?????# ####?? | | # ##???? #????????????# #?????# #?? | | # ##???## ##############s#?????# #?? | | # #???# u@ s #?????#### #?? | | ## #???# #################????????# #?? | | ?## #???# #???####?????????????????# ### | | ??# ##???# #??## ###???????????????# | | ??## ## #????# #??# ###?????????????#### | | ???## ### #???## #### ##???????????????# | | ????#####?# ##### """ ##??????????????# | | ??????????# """ #??????????????# | | ??????????####### ##### """ #??????????????## | | ????????????????# #???# ##????????????##### | | ????????????????# #???## ### #????????????## # | | ????????????????# #????#####?# ############## | | ????????##??????# #??????????# | | ???????## ?????# #?????###??# ## ########## | | ??????## #???## ##???## ### ## #????????# # | | ??????# #?## #???# ## ###??????# ## | | ??????# ## #???## ##?????# | | ??????# ##????## """ ##????## | | ??????#### ##??????## """ #????###### | | ?????????#### ##????????## """ #????????? | | ????????????#####??????????## #????????? | | ????????????????????????????## ##????????? | | ?????????????????????????????## ##?????????? | | ??????????????????????????????#########??????????? | | ?????????????????????????????????????????????????? | +----------------------------------------------------+ Best States ------------- Heat Dissipation 28 Energy Generation 10 Energy Capacity 125 Matter Stores 300 Matter Capacity 300 Sight Range 16 Terrain Scan Density 110 ECM Strength 1 Evasion (%) 62 Recoil Reduction 2 Item Schematics ----------------- None Robot Schematics ------------------ None Fabricated ------------ Nothing Alien Tech Used ----------------- None Achievements -------------- None Challenges ------------ None Game ------ Seed ZhirovStealthCharger Manual? 0 Play Time 00:19:06 Cumulative 76.4 hours Start 2025.03.29 @ 20:40:14 End 2025.03.29 @ 20:56:17 Sessions 1 Manual Loads 0 Difficulty Rogue Special Mode None Game No. 122 Rogue 108 Adventurer 14 Explorer 0 Win Type - Total 0 Types 0/0/0/0/0/0/0/0/0 Lore% 34 Gallery% 46 Achievement% 41 Wizard Run 0 Options --------- Layout 1 ASCII 0 Keyboard 0 Movement Mouse Keybinds 0 Fullscreen 1 Font 24/Smallcaps Map View 50x35 Zoom Use 0% Tactical HUD 0 Map Filters NONE Filters NONE Steam 1 RUN: 969cb2d2-d382-4ecb-a4b5-f537a1331511